{"text_format":"1","workbook":"xlsx","n_sheets":11,"sheets":["التقارير_المحسنة","تسجيل الدخول","القائمة الرئيسية","الموكلين","الخصوم","القضايا","الجلسات","المواعيد","العقود","التكاليف","التقارير"],"not_rendered":{"charts":4,"images":0,"macros":1,"external_links":0,"defined_names":0,"comments":0,"pivot_tables":0},"unopened":[],"bounds":{"document_bytes":16777216,"sheet_cells":100000,"rows_first":2000,"rows_last":500,"rows_between":2000,"halvings":0,"cell_chars":16384,"cell_head_chars":4096},"cells_cut":0,"cells_raw":0,"read":"whole","date_system":"1900"}

{"sheet":"التقارير_المحسنة","index":0,"n_rows":36,"n_cols":13,"rows_kept":36,"cut":false,"hidden":false,"merged":[[32,0,32,3],[7,0,7,1],[7,3,7,4],[0,0,0,9],[14,0,14,1],[3,6,3,9],[3,0,3,5]]}
["📊 نظام التقارير والإحصائيات - مكتب المحاماة"]
["تاريخ التقرير:",{"$f":"TODAY()","v":"2026-05-03"}]
[]
["📈 ملخص إحصائي شامل",null,null,null,null,null,"⏰ الجلسات القادمة (خلال 7 أيام)"]
["إجمالي الموكلين","إجمالي الخصوم","إجمالي القضايا","القضايا النشطة","إجمالي الجلسات","إجمالي الإيرادات","رقم الجلسة","رقم القضية","الموكل","الخصم","تاريخ الجلسة","المحكمة","موضوع الجلسة"]
[{"$f":"COUNTA(الموكلين!A4:A999)","v":6},{"$f":"COUNTA(الخصوم!A4:A1000)","v":6},{"$f":"COUNTA(القضايا!A4:A1000)","v":6},{"$f":"COUNTIF(القضايا!H4:H1000,\"نشطة\")+COUNTIF(القضايا!H4:H1000,\"متداولة\")","v":5},{"$f":"COUNTA(الجلسات!A4:A1000)","v":6},{"$f":"SUM(التكاليف!F4:F1000)","v":207600}]
[]
["📂 توزيع القضايا حسب الحالة",null,null,"💰 توزيع المبالغ حسب حالة الدفع"]
["الحالة","العدد",null,"حالة الدفع","المبلغ"]
["نشطة",{"$f":"COUNTIF(القضايا!H4:H1000,\"نشطة\")","v":5},null,"مدفوع",{"$f":"SUMIF(التكاليف!G4:G1000,\"مدفوع\",التكاليف!F4:F1000)","v":45800}]
["مغلقة",{"$f":"COUNTIF(القضايا!H4:H1000,\"مغلقة\")","v":1},null,"غير مدفوع",{"$f":"SUMIF(التكاليف!G4:G1000,\"غير مدفوع\",التكاليف!F4:F1000)","v":8000}]
["متداولة",{"$f":"COUNTIF(القضايا!H4:H1000,\"متداولة\")","v":0},null,"مدفوع جزئي",{"$f":"SUMIF(التكاليف!G4:G1000,\"مدفوع جزئي\",التكاليف!F4:F1000)","v":50000}]
["مؤجلة",{"$f":"COUNTIF(القضايا!H4:H1000,\"مؤجلة\")","v":0}]
[]
["بيانات للرسم البياني"]
["الفئة","القيمة"]
["الموكلين",{"$f":"A6","v":6}]
["القضايا",{"$f":"C6","v":6}]
["الجلسات",{"$f":"E6","v":6}]
[]
[]
[]
[]
[]
[]
[]
[]
[]
[]
[]
[]
[]
["🔊 أزرار التحكم"]
["طباعة التقارير (PDF)","اضغط Ctrl + P ثم اختر الطابعة PDF"]
["إظهار/إخفاء أوراق العمل","Ctrl + F1"]
["تحديث الإحصائيات","F9"]

{"sheet":"تسجيل الدخول","index":1,"n_rows":22,"n_cols":3,"rows_kept":22,"cut":false,"hidden":false,"merged":[[1,1,2,3],[15,1,16,3],[13,1,13,3],[3,1,3,3],[21,1,22,3],[5,1,5,3]]}
[]
[null,"⚖ مكتب المحاماة الإلكتروني ⚖"]
[]
[null,"نظام إدارة متكامل"]
[]
[null,"🔐 تسجيل الدخول"]
[]
[null,"اسم المستخدم:","admin"]
[]
[null,"كلمة المرور:",123456]
[]
[null,"حالة الدخول:",{"$f":"IF(AND(C8=\"admin\",C10=\"123456\"),\"✅ تم التحقق - مرحباً بك\",\"❌ بيانات غير صحيحة\")","v":"❌ بيانات غير صحيحة"}]
[]
[null,"👈 انقر هنا للدخول إلى القائمة الرئيسية"]
[]
[null,"ملاحظة: المستخدم الافتراضي = admin | كلمة المرور = 123456"]
[]
[]
[]
[]
[]
[null,"© 2026 - جميع الحقوق محفوظة - مكتب المحاماة"]

{"sheet":"القائمة الرئيسية","index":2,"n_rows":21,"n_cols":6,"rows_kept":21,"cut":false,"hidden":false,"merged":[[20,0,20,6],[5,0,6,1],[3,2,3,4],[8,2,9,3],[8,4,9,5],[4,0,4,6],[16,4,16,5],[15,0,15,1],[15,2,15,3],[14,0,14,6],[8,0,9,1],[11,4,12,5],[16,0,16,1],[16,2,16,3],[15,4,15,5],[3,5,3,6],[11,0,12,1],[11,2,12,3],[5,4,6,5],[0,0,1,6],[5,2,6,3],[3,0,3,1],[2,0,2,6]]}
["🏛 لوحة التحكم الرئيسية - مكتب المحاماة 🏛"]
[]
["اختر الوحدة التي تريد الدخول إليها"]
[{"$f":"\"📅 التاريخ: \"&TEXT(TODAY(),\"yyyy/mm/dd\")","v":"📅 التاريخ: 2026/05/03"},null,{"$f":"\"🗓 \"&CHOOSE(WEEKDAY(TODAY(),1),\"الأحد\",\"الإثنين\",\"الثلاثاء\",\"الأربعاء\",\"الخميس\",\"الجمعة\",\"السبت\")&\" - \"&TEXT(TODAY(),\"dd\")&\" / \"&CHOOSE(MONTH(TODAY()),\"يناير\",\"فبراير\",\"مارس\",\"أبريل\",\"مايو\",\"يونيو\",\"يوليو\",\"أغسطس\",\"سبتمبر\",\"أكتوبر\",\"نوفمبر\",\"ديسمبر\")&\" / \"&YEAR(TODAY())","v":"🗓 الأحد - 03 / مايو / 2026"},null,null,{"$f":"\"🕐 الوقت: \"&TEXT(NOW(),\"hh:mm\")&\" \"&IF(HOUR(NOW())<12,\"صباحاً\",\"مساءً\")","v":"🕐 الوقت: 17:53 مساءً"}]
[{"$f":"\"👋 مرحباً بك في نظام إدارة مكتب المحاماة | \"&IF(HOUR(NOW())<12,\"صباح الخير ☀\",\"مساء الخير 🌙\")&\" | اختر الوحدة من البطاقات أدناه\"","v":"👋 مرحباً بك في نظام إدارة مكتب المحاماة | مساء الخير 🌙 | اختر الوحدة من البطاقات أدناه"}]
["👥 الموكلين - إدارة بيانات العملاء",null,"⚔ الخصوم - إدارة الأطراف الأخرى",null,"📂 القضايا - ملفات القضايا والدعاوى"]
[]
[]
["⚖ الجلسات - جدول الجلسات القضائية",null,"📅 المواعيد - التقويم والتذكيرات",null,"📜 العقود - عقود الموكلين والاتفاقيات"]
[]
[]
["💰 التكاليف - الأتعاب والمصاريف",null,"📊 التقارير - الإحصائيات والرسوم",null,"🚪 تسجيل الخروج - العودة للدخول"]
[]
[]
["🔔 تنبيهات الجلسات القادمة (خلال 7 أيام):"]
["إجمالي الموكلين",null,"إجمالي القضايا",null,"القضايا النشطة"]
[{"$f":"COUNTA(الموكلين!A4:A999)","v":6},null,{"$f":"COUNTA(القضايا!A4:A1000)","v":6},null,{"$f":"COUNTIF(القضايا!H4:H1000,\"نشطة\")","v":5}]
[]
[]
[]
["© 2026 نظام إدارة مكتب المحاماة - الإصدار 1.0"]

{"sheet":"الموكلين","index":3,"n_rows":9,"n_cols":8,"rows_kept":9,"cut":false,"hidden":false,"merged":[[1,0,1,7],[0,0,0,7]]}
["👥 إدارة الموكلين"]
["🏠 العودة إلى القائمة الرئيسية"]
["كود الموكل","اسم الموكل","رقم الهوية","رقم الجوال","البريد الإلكتروني","العنوان","تاريخ التسجيل","ملاحظات"]
[1,"أحمد محمد العتيبي",1234567890,501234567,"ahmed@example.com","الرياض - حي النخيل","2026-05-06","موكل دائم"]
[2,"فاطمة سالم القحطاني",1234567891,507654321,"fatima@example.com","جدة - حي الزهراء","2026-05-07","قضية تجارية"]
[3,"خالد عبدالله الشمري",1234567892,512345678,"khalid@example.com","الدمام - حي الفيصلية","2026-05-08","قضية عمالية"]
[4,"نورة فهد الدوسري",1234567893,523456789,"noura@example.com","الرياض - حي الملز","2026-05-09","قضية أحوال شخصية"]
[5,"سعد عبدالرحمن الغامدي",1234567894,534567890,"saad@example.com","مكة - حي العزيزية","2026-05-10","قضية عقارية"]
[6,"سعد عبدالرحمن الغامدي",1234567894,534567890,"saad@example.com","مكة - حي العزيزية","2026-05-11","قضية عقارية"]

{"sheet":"الخصوم","index":4,"n_rows":9,"n_cols":8,"rows_kept":9,"cut":false,"hidden":false,"merged":[[1,0,1,7],[0,0,0,7]]}
["⚔ إدارة الخصوم"]
["🏠 العودة إلى القائمة الرئيسية"]
["كود الخصم","اسم الخصم","رقم الهوية/السجل","نوع الخصم","رقم الجوال","العنوان","اسم المحامي المقابل","ملاحظات"]
[1,"شركة الإعمار التجارية",7001234567,"شركة",112345678,"الرياض - طريق الملك فهد","د. محمد العمري","خصم في قضية تجارية"]
[2,"عبدالله ناصر الحربي",1098765432,"فرد",598765432,"جدة - حي الروضة","أ. سعد القحطاني","خصم في قضية عمالية"]
[3,"مؤسسة الأفق للمقاولات",7009876543,"مؤسسة",114567890,"الدمام - الكورنيش","أ. فهد الزهراني","قضية عقارية"]
[4,"ماجد علي السبيعي",1087654321,"فرد",556789012,"الرياض - حي العليا","د. خالد المطيري","قضية أحوال شخصية"]
[5,"بنك التنمية الوطني",7008765432,"شركة",118765432,"الرياض - شارع العليا","أ. ناصر الدوسري","قضية مالية"]
[6,"علي محمد الخالدي",1021456321,"ممثل",506478653,"جدة","سامي يوسف","مدعي ضد موكلي"]

{"sheet":"القضايا","index":5,"n_rows":9,"n_cols":9,"rows_kept":9,"cut":false,"hidden":false,"merged":[[0,0,0,8],[1,0,1,8]]}
["📂 إدارة القضايا"]
["🏠 العودة إلى القائمة الرئيسية"]
["رقم القضية","اسم الموكل","اسم الخصم","نوع القضية","المحكمة","الدائرة","تاريخ القيد","حالة القضية","ملخص القضية"]
[47776,"أحمد محمد العتيبي","شركة الإعمار التجارية","تجارية","المحكمة التجارية","الأولى","2025-02-01","نشطة","نزاع على عقد توريد"]
[44425,"فاطمة سالم القحطاني","عبدالله ناصر الحربي","عمالية","المحكمة العمالية","الثانية","2025-02-15","نشطة","مطالبة بمستحقات عمالية"]
[42542,"خالد عبدالله الشمري","مؤسسة الأفق للمقاولات","عقارية","المحكمة العامة","الثالثة","2025-03-20","نشطة","نزاع ملكية عقار"]
[444889,"نورة فهد الدوسري","ماجد علي السبيعي","أحوال شخصية","محكمة الأحوال","الأولى","2025-04-10","مغلقة","قضية حضانة"]
[44965,"سعد عبدالرحمن الغامدي","بنك التنمية الوطني","مالية","المحكمة التجارية","الثانية","2025-05-25","نشطة","نزاع على قرض"]
[477864525,"علي خالد","وليد هاني","مطالبة بمستندات","المحكمة العامة بالقصيم","11/11/1447","جديدة","نشطة","نزاع على قرض"]

{"sheet":"الجلسات","index":6,"n_rows":9,"n_cols":9,"rows_kept":9,"cut":false,"hidden":false,"merged":[[1,0,1,7],[0,0,0,7]]}
["⚖ جدول الجلسات",null,null,null,null,null,null,null,"⏰ الجلسات القادمة:"]
["🏠 العودة إلى القائمة الرئيسية"]
["رقم الجلسة","رقم القضية","تاريخ الجلسة","وقت الجلسة","المحكمة","موضوع الجلسة","النتيجة","الجلسة القادمة"]
["ج-001","ق-2025-001","2026-01-15","10:00","المحكمة التجارية","جلسة المرافعة الأولى","تم تأجيل الجلسة","2026-02-15"]
["ج-002","ق-2025-002","2026-01-20","11:30","المحكمة العمالية","تقديم البينات","تم الاستماع للشهود","2026-02-20"]
["ج-003","ق-2025-003","2026-01-25","09:00","المحكمة العامة","جلسة الخبير","تم تعيين خبير","2026-02-25"]
["ج-004","ق-2025-005","2026-02-01","13:00","المحكمة التجارية","جلسة المرافعة","تم النطق بالحكم","2026-02-26"]
["ج-005","ق-2025-001","2026-02-15","10:00","المحكمة التجارية","جلسة استئناف","قيد الانتظار","2026-03-15"]
["ج-006","ق-2025-003","2026-02-29","13:01","المحكمة التجارية","جلسة المرافعة","تم النطق بالحكم","2026-02-27"]

{"sheet":"المواعيد","index":7,"n_rows":8,"n_cols":8,"rows_kept":8,"cut":false,"hidden":false,"merged":[[1,0,1,7],[0,0,0,7]]}
["📅 المواعيد والتذكيرات"]
["🏠 العودة إلى القائمة الرئيسية"]
["رقم الموعد","نوع الموعد","اسم الموكل","التاريخ","الوقت","المكان","ملاحظات","الحالة"]
["مو-001","اجتماع مع موكل","أحمد محمد العتيبي","2026-01-10","14:00","مكتب المحاماة","مناقشة استراتيجية القضية","مؤكد"]
["مو-002","تسليم مستندات","فاطمة سالم القحطاني","2026-01-12","11:00","مكتب المحاماة","تسليم عقد العمل الأصلي","مؤكد"]
["مو-003","زيارة محكمة","خالد عبدالله الشمري","2026-01-18","09:30","المحكمة العامة","تقديم لائحة دعوى","مؤكد"]
["مو-004","استشارة قانونية","نورة فهد الدوسري","2026-01-22","15:00","مكتب المحاماة","استشارة في قضية جديدة","معلق"]
["مو-005","اجتماع مع خبير","سعد عبدالرحمن الغامدي","2026-01-28","10:00","مكتب الخبير","مراجعة التقرير المالي","مؤكد"]

{"sheet":"العقود","index":8,"n_rows":8,"n_cols":8,"rows_kept":8,"cut":false,"hidden":false,"merged":[[1,0,1,7],[0,0,0,7]]}
["📜 العقود والاتفاقيات"]
["🏠 العودة إلى القائمة الرئيسية"]
["رقم العقد","اسم الموكل","نوع العقد","تاريخ التوقيع","تاريخ الانتهاء","قيمة العقد","حالة العقد","ملاحظات"]
[21,"أحمد محمد العتيبي","وكالة قضائية","2025-02-01","2026-02-01",50000,"ساري","عقد سنوي"]
[23,"فاطمة سالم القحطاني","استشارات قانونية","2025-02-15","2025-12-15",25000,"ساري","استشارات شهرية"]
[24,"خالد عبدالله الشمري","وكالة قضائية","2025-03-20","2026-03-20",75000,"ساري","قضية عقارية"]
[25,"نورة فهد الدوسري","وكالة قضائية","2025-04-10","2025-10-10",30000,"منتهي","تم الإنجاز"]
[26,"سعد عبدالرحمن الغامدي","وكالة قضائية","2025-05-25","2026-05-25",100000,"ساري","قضية مالية كبيرة"]

{"sheet":"التكاليف","index":9,"n_rows":11,"n_cols":8,"rows_kept":11,"cut":false,"hidden":false,"merged":[[10,0,10,4],[1,0,1,7],[0,0,0,7]]}
["💰 الأتعاب والمصاريف"]
["🏠 العودة إلى القائمة الرئيسية"]
["رقم القيد","رقم القضية","اسم الموكل","نوع المصروف","التاريخ","المبلغ","حالة الدفع","ملاحظات"]
["ت-001","ق-2025-001","أحمد محمد العتيبي","أتعاب محاماة","2025-02-01",25000,"مدفوع","دفعة أولى"]
["ت-002","ق-2025-001","أحمد محمد العتيبي","رسوم قضائية","2025-02-05",3500,"مدفوع","رسوم قيد الدعوى"]
["ت-003","ق-2025-002","فاطمة سالم القحطاني","أتعاب محاماة","2025-02-15",15000,"مدفوع","دفعة كاملة"]
["ت-004","ق-2025-003","خالد عبدالله الشمري","أتعاب خبير","2025-04-10",8000,"غير مدفوع","خبير عقاري"]
["ت-005","ق-2025-005","سعد عبدالرحمن الغامدي","أتعاب محاماة","2025-05-25",50000,"مدفوع جزئي","تم دفع 50%"]
["ت-006","ق-2025-002","فاطمة سالم القحطاني","مصاريف نقل","2025-03-01",1500,"مدفوع","مصاريف زيارة محكمة"]
["ت-007","ق-2025-005","سعد عبدالرحمن الغامدي","رسوم تصوير","2025-06-01",800,"مدفوع","تصوير مستندات"]
["الإجمالي",null,null,null,null,{"$f":"SUM(F4:F10)","v":103800}]

{"sheet":"التقارير","index":10,"n_rows":20,"n_cols":6,"rows_kept":20,"cut":false,"hidden":false,"merged":[[1,0,1,5],[0,0,0,5],[6,3,6,5],[6,0,6,2],[19,0,19,5]]}
["📊 التقارير والإحصائيات"]
["🏠 العودة إلى القائمة الرئيسية"]
[]
["إجمالي الموكلين","إجمالي الخصوم","إجمالي القضايا","القضايا النشطة","إجمالي الجلسات","إجمالي الإيرادات"]
[{"$f":"COUNTA(الموكلين!A4:A999)","v":6},{"$f":"COUNTA(الخصوم!A4:A1000)","v":6},{"$f":"COUNTA(القضايا!A4:A1000)","v":6},{"$f":"COUNTIF(القضايا!H4:H1000,\"نشطة\")","v":5},{"$f":"COUNTA(الجلسات!A4:A1000)","v":6},{"$f":"SUM(التكاليف!F4:F1000)","v":207600}]
[]
["📂 توزيع القضايا حسب الحالة",null,null,"💰 توزيع المصاريف حسب الدفع"]
["الحالة","العدد",null,"حالة الدفع","المبلغ"]
["نشطة",{"$f":"COUNTIF(القضايا!H4:H1000,\"نشطة\")","v":5},null,"مدفوع",{"$f":"SUMIF(التكاليف!G4:G1000,\"مدفوع\",التكاليف!F4:F1000)","v":45800}]
["مغلقة",{"$f":"COUNTIF(القضايا!H4:H1000,\"مغلقة\")","v":1},null,"غير مدفوع",{"$f":"SUMIF(التكاليف!G4:G1000,\"غير مدفوع\",التكاليف!F4:F1000)","v":8000}]
[null,null,null,"مدفوع جزئي",{"$f":"SUMIF(التكاليف!G4:G1000,\"مدفوع جزئي\",التكاليف!F4:F1000)","v":50000}]
[]
[]
[]
[]
[]
[]
[]
[]
["© 2026 نظام إدارة مكتب المحاماة - تقرير شامل"]